fUSD/lending_fUSD_20260128
["ID","MTS","AMOUNT","RATE_DAILY","PERIOD"]
[403860484,1769605850364,-1000.0,0.00042355,14]
[403860485,1769605850374,-1000.0,0.00042376,14]
[403860486,1769605850383,-1000.0,0.00042377,14]
[403860487,1769605850392,-1532.0,0.00042388,16]
[403860488,1769605850402,-151.0,0.00042398,14]
[403860489,1769605850412,-1500.0,0.000424,120]
[403860490,1769605850422,-1500.0,0.000424,120]
[403860491,1769605850432,-1500.0,0.000424,120]
[403860492,1769605850442,-1500.0,0.000424,120]
[403860493,1769605850455,-1500.0,0.000424,120]
[403860494,1769605850465,-1500.0,0.000424,120]
[403860495,1769605850475,-633.458,0.000424,120]
[403860496,1769605850484,-150.0,0.00042401,14]
[403860497,1769605850493,-5869.85237251,0.00042401,14]
[403860498,1769605850503,-5869.85237237,0.00042401,14]
[403860499,1769605850512,-5869.85237237,0.00042401,14]
[403860500,1769605850521,-5869.85237237,0.00042401,14]
[403860501,1769605850531,-5869.85237237,0.00042401,14]
[403860502,1769605850540,-5869.85237237,0.00042401,14]
[403860503,1769605850549,-5869.85237237,0.00042401,14]
[403860504,1769605850558,-5869.85237237,0.00042401,14]
[403860505,1769605850567,-5869.85237237,0.00042401,14]
[403860506,1769605850577,-5869.85237237,0.00042401,14]
[403860507,1769605850587,-5869.85237237,0.00042401,14]
[403860508,1769605850597,-5869.85237237,0.00042401,14]
[403860509,1769605850606,-5869.85237237,0.00042401,14]
[403860510,1769605850616,-5869.85237237,0.00042401,14]
[403860511,1769605850626,-1000.0,0.00042413,14]
[403860512,1769605850636,-1000.0,0.00042432,14]
[403860513,1769605850645,-500.0,0.00042438,120]
[403860514,1769605850654,-150.0,0.00042455,14]
[403860515,1769605850663,-1000.0,0.00042458,14]
[403860516,1769605850672,-2000.0,0.00042465,120]
[403860517,1769605850681,-484.94,0.00042466,30]
[403860518,1769605850690,-484.94,0.00042466,30]
[403860519,1769605850699,-484.94,0.00042466,30]
[403860520,1769605850708,-188.34,0.00042466,30]
[403860521,1769605850717,-1000.0,0.00042471,14]
[403860522,1769605850726,-1000.0,0.00042472,14]
[403860523,1769605850735,-500.0,0.000425,120]
[403860524,1769605850744,-1000.0,0.00042509,14]
[403860525,1769605850753,-1000.0,0.00042521,14]
[403860526,1769605850762,-150.0,0.00042536,14]
[403860527,1769605850771,-1000.0,0.00042536,14]
[403860528,1769605850780,-1000.0,0.00042536,14]
[403860529,1769605850789,-3360.0,0.00042546,30]
[403860530,1769605850798,-150.0,0.00042558,14]
[403860531,1769605850806,-1000.0,0.00042566,14]
[403860532,1769605850815,-1000.0,0.00042574,14]
[403860533,1769605850825,-500.0,0.00042575,120]
[403860534,1769605850834,-1000.0,0.00042576,14]
[403860535,1769605850843,-1000.0,0.00042586,14]
[403860536,1769605850852,-1000.0,0.00042598,14]
[403860537,1769605850863,-2303.17,0.000426,14]
[403860538,1769605850875,-180.06,0.00042603,30]
[403860539,1769605850886,-300.0,0.00042603,30]
[403860540,1769605850897,-2520.98,0.00042603,30]
[403860541,1769605850906,-300.3,0.00042603,30]
[403860542,1769605850915,-172.31,0.00042603,30]
[403860543,1769605850924,-150.0,0.00042603,30]
[403860544,1769605850934,-150.0,0.00042603,30]
[403860545,1769605850943,-468.96,0.00042603,30]
[403860546,1769605850952,-176.73,0.00042603,30]
[403860547,1769605850962,-180.06,0.00042603,30]
[403860548,1769605850971,-559.17,0.00042603,30]
[403860549,1769605850980,-172.31,0.00042603,30]
[403860550,1769605850989,-150.0,0.00042603,30]
[403860551,1769605850999,-468.96,0.00042603,30]
[403860552,1769605851008,-559.17,0.00042603,30]
[403860553,1769605851017,-150.0,0.00042603,30]
[403860554,1769605851026,-180.06,0.00042603,30]
[403860555,1769605851036,-172.31,0.00042603,30]
[403860556,1769605851046,-468.96,0.00042603,30]
[403860557,1769605851055,-150.0,0.00042603,30]
[403860558,1769605851065,-180.06,0.00042603,30]
[403860559,1769605851075,-172.31,0.00042603,30]
[403860560,1769605851084,-468.96,0.00042603,30]
[403860561,1769605851094,-150.0,0.00042603,30]
[403860562,1769605851104,-559.17,0.00042603,30]
[403860563,1769605851114,-180.06,0.00042603,30]
[403860564,1769605851123,-559.17,0.00042603,30]
[403860565,1769605851134,-150.0,0.00042603,30]
[403860566,1769605851143,-468.96,0.00042603,30]
[403860567,1769605851153,-172.31,0.00042603,30]
[403860568,1769605851162,-1000.0,0.00042615,14]
[403860569,1769605851171,-1000.0,0.00042623,14]
[403860570,1769605851181,-1000.0,0.00042625,14]
[403860571,1769605851191,-1000.0,0.00042649,14]
[403860572,1769605851206,-700.0,0.00042651,60]
[403860573,1769605851215,-1000.0,0.00042655,14]
[403860574,1769605851224,-150.0,0.00042692,14]
[403860575,1769605851235,-1000.0,0.00042705,14]
[403860576,1769605851244,-387.0,0.00042707,2]
[403860577,1769605851253,-2831.0,0.00042708,16]
[403860578,1769605851263,-500.0,0.00042712,120]
[403860579,1769605851274,-317.10984408,0.00042734,14]
[403860580,1769605851283,-1000.0,0.00042744,14]
[403860581,1769605851292,-163.0,0.0004275,16]
[403860582,1769605851301,-1000.0,0.0004275,14]
[403860583,1769605851311,-163.0,0.00042754,16]
[403860584,1769605851320,-150.0,0.00042755,14]
[403860585,1769605851330,-387.0,0.00042758,2]
[403860586,1769605851339,-1000.0,0.00042762,14]
[403860587,1769605851348,-1303.63015,0.0004277,120]
[403860588,1769605851357,-1303.63015,0.0004277,120]
[403860589,1769605851366,-1303.63015,0.0004277,120]
[403860590,1769605851376,-1303.63015,0.0004277,120]
[403860591,1769605851386,-1303.63016,0.0004277,120]
[403860592,1769605851396,-1000.0,0.00042784,14]
[403860593,1769605851405,-1000.0,0.00042788,14]
[403860594,1769605851414,-1000.0,0.00042795,14]
[403860595,1769605851423,-1000.0,0.000428,120]
[403860596,1769605851435,-1000.0,0.000428,14]
[403860597,1769605851444,-1000.0,0.00042804,14]
[403860598,1769605851453,-1000.0,0.0004281,14]
[403860599,1769605851463,-1000.0,0.00042813,14]
[403860600,1769605851473,-1000.0,0.00042827,14]
[403860601,1769605851482,-150.0,0.0004283,14]
[403860602,1769605851492,-1000.0,0.00042833,14]
[403860603,1769605851502,-1000.0,0.00042846,14]
[403860604,1769605851512,-563.50528508,0.00042849,120]
[403860605,1769605851521,-1000.0,0.00042855,14]
[403860606,1769605851530,-1000.0,0.00042855,14]
[403860607,1769605851539,-1000.0,0.00042857,14]
[403860608,1769605851549,-1000.0,0.00042859,14]
[403860609,1769605851558,-1000.0,0.0004286,14]
[403860610,1769605851567,-387.0,0.00042904,2]
[403860611,1769605851576,-1000.0,0.00042908,14]
[403860612,1769605851586,-7312.5733919,0.00042909,2]
[403860613,1769605851595,-387.0,0.00042916,2]
[403860614,1769605851604,-2831.0,0.00042919,16]
[403860615,1769605851613,-1000.0,0.00042924,14]
[403860616,1769605851623,-12985.88,0.00042948,2]
[403860617,1769605851632,-387.0,0.00042954,2]
[403860618,1769605851642,-200.17585614,0.00042954,2]
[403860619,1769605851774,-387.0,0.00042955,2]
[403860620,1769605851789,-150.0,0.00042957,14]
[403860621,1769605851799,-200.0,0.00042959,120]
[403860622,1769605851810,-1000.0,0.00042961,14]
[403860623,1769605851820,-2602.30488931,0.00042978,120]
[403860624,1769605851829,-3360.0,0.0004298,30]
[403860625,1769605851839,-2000.0,0.00042983,3]
[403860626,1769605851848,-1000.0,0.00042986,14]
[403860627,1769605851858,-1000.0,0.00042986,14]
[403860628,1769605851867,-1000.0,0.00042987,14]
[403860629,1769605851876,-1000.0,0.00042994,14]
[403860630,1769605851886,-1159.17,0.00043,30]
[403860631,1769605851896,-500.0,0.00043,120]
[403860632,1769605851905,-150.0,0.00043021,14]
[403860633,1769605851914,-1000.0,0.00043025,14]
[403860634,1769605851924,-1000.0,0.00043027,14]
[403860635,1769605851934,-1000.0,0.00043035,14]
[403860636,1769605851943,-1000.0,0.00043038,14]
[403860637,1769605851953,-1000.0,0.00043046,14]
[403860638,1769605851962,-288.44972209,0.00043047,120]
[403860639,1769605851972,-161182.6158689,0.00043048,2]
[403860640,1769605851981,-151.0,0.00043048,120]
[403860641,1769605851991,-151.0,0.00043048,120]
[403860642,1769605852002,-151.0,0.00043048,120]
[403860643,1769605852012,-417.78485,0.00043048,120]
[403860644,1769605852021,-200.925052,0.00043048,120]
[403860645,1769605852031,-417.78485,0.00043048,120]
[403860646,1769605852040,-151.0,0.00043048,120]
[403860647,1769605852049,-200.925052,0.00043048,120]
[403860648,1769605852059,-256.382205,0.00043048,120]
[403860649,1769605852068,-417.78485,0.00043048,120]
[403860650,1769605852078,-200.925052,0.00043048,120]
[403860651,1769605852087,-256.382205,0.00043048,120]
[403860652,1769605852096,-417.78485,0.00043048,120]
[403860653,1769605852106,-200.925052,0.00043048,120]
[403860654,1769605852116,-256.382205,0.00043048,120]
[403860655,1769605852125,-256.382205,0.00043048,120]
[403860656,1769605852135,-151.0,0.00043048,120]
[403860657,1769605852146,-151.0,0.00043048,120]
[403860658,1769605852155,-151.0,0.00043048,120]
[403860659,1769605852165,-151.0,0.00043048,120]
[403860660,1769605852174,-151.0,0.00043048,120]
[403860661,1769605852185,-151.0,0.00043048,120]
[403860662,1769605852195,-751.683482,0.00043048,120]
[403860663,1769605852205,-751.683482,0.00043048,120]
[403860664,1769605852218,-751.683482,0.00043048,120]
[403860665,1769605852227,-751.683482,0.00043048,120]
[403860666,1769605852237,-151.0,0.00043048,120]
[403860667,1769605852247,-224.209174,0.00043048,28]
[403860668,1769605852258,-224.209174,0.00043048,28]
[403860669,1769605852267,-224.209174,0.00043048,28]
[403860670,1769605852278,-224.209174,0.00043048,28]
[403860671,1769605852290,-151.0,0.00043048,120]
[403860672,1769605852300,-308.7065,0.00043048,120]
[403860673,1769605852309,-151.0,0.00043048,120]
[403860674,1769605852319,-308.7065,0.00043048,120]
[403860675,1769605852328,-308.7065,0.00043048,120]
[403860676,1769605852337,-308.7065,0.00043048,120]
[403860677,1769605852347,-232.956212,0.00043048,120]
[403860678,1769605852357,-232.956212,0.00043048,120]
[403860679,1769605852366,-232.956212,0.00043048,120]
[403860680,1769605852375,-232.956212,0.00043048,120]
[403860681,1769605852385,-151.481485,0.00043048,120]
[403860682,1769605852395,-172.407724,0.00043048,120]
[403860683,1769605852404,-172.407724,0.00043048,120]
[403860684,1769605852413,-172.214516,0.00043048,120]
[403860685,1769605852424,-172.407724,0.00043048,120]
[403860686,1769605852434,-649.740431,0.00043048,120]
[403860687,1769605852443,-172.407724,0.00043048,120]
[403860688,1769605852453,-649.740431,0.00043048,120]
[403860689,1769605852462,-238.126289,0.00043048,120]
[403860690,1769605852472,-268.881506,0.00043048,120]
[403860691,1769605852482,-649.740431,0.00043048,120]
[403860692,1769605852491,-238.126289,0.00043048,120]
[403860693,1769605852500,-268.881506,0.00043048,120]
[403860694,1769605852510,-1143.04822,0.00043048,120]
[403860695,1769605852519,-238.126289,0.00043048,120]
[403860696,1769605852528,-268.881506,0.00043048,120]
[403860697,1769605852538,-1143.04822,0.00043048,120]
[403860698,1769605852549,-151.0,0.00043048,120]
[403860699,1769605852562,-238.126289,0.00043048,120]
[403860700,1769605852572,-268.881506,0.00043048,120]
[403860701,1769605852583,-1143.04822,0.00043048,120]
[403860702,1769605852592,-1143.04822,0.00043048,120]
[403860703,1769605852601,-151.0,0.00043048,120]
[403860704,1769605852611,-151.0,0.00043048,120]
[403860705,1769605852620,-151.0,0.00043048,120]
[403860706,1769605852630,-151.0,0.00043048,120]
[403860707,1769605852639,-1664.728722,0.00043048,120]
[403860708,1769605852649,-177.06653802,0.00043048,120]
[403860709,1769605852658,-1664.728722,0.00043048,120]
[403860710,1769605852667,-1664.728722,0.00043048,120]
[403860711,1769605852676,-505.856848,0.00043048,120]
[403860712,1769605852686,-1664.728722,0.00043048,120]
[403860713,1769605852697,-505.856848,0.00043048,120]
[403860714,1769605852706,-151.997395,0.00043048,120]
[403860715,1769605852716,-505.856848,0.00043048,120]
[403860716,1769605852725,-505.856848,0.00043048,120]
[403860717,1769605852735,-151.0,0.00043048,120]
[403860718,1769605852745,-292.637224,0.00043048,120]
[403860719,1769605852754,-151.0,0.00043048,120]
[403860720,1769605852763,-151.0,0.00043048,120]
[403860721,1769605852772,-172.214516,0.00043048,120]
[403860722,1769605852781,-172.214516,0.00043048,120]
[403860723,1769605852791,-151.0,0.00043048,14]
[403860724,1769605852800,-172.214516,0.00043048,120]
[403860725,1769605852809,-252.213822,0.00043048,14]
[403860726,1769605852818,-281.325412,0.00043048,120]
[403860727,1769605852829,-151.0,0.00043048,120]
[403860728,1769605852839,-649.740431,0.00043048,120]
[403860729,1769605852848,-151.0,0.00043048,120]
[403860730,1769605852857,-168.189552,0.00043048,120]
[403860731,1769605852867,-241.235831,0.00043048,90]
[403860732,1769605852876,-241.235831,0.00043048,90]
[403860733,1769605852886,-1000.0,0.0004305,14]
[403860734,1769605852895,-1000.0,0.00043054,14]
[403860735,1769605852904,-1000.0,0.00043064,14]
[403860736,1769605852914,-150.0,0.00043068,14]
[403860737,1769605852923,-2831.0,0.00043071,16]
[403860738,1769605852933,-1000.0,0.00043072,14]
[403860739,1769605852942,-858.77,0.000431,14]
[403860740,1769605852952,-197.8067,0.000431,120]
[403860741,1769605852963,-683.27,0.000431,60]
[403860742,1769605852973,-253.0,0.000431,41]
[403860743,1769605852983,-3630.0362154,0.000431,15]
[403860744,1769605852993,-9558.21524813,0.000431,15]
[403860745,1769605853003,-638.21187706,0.000431,2]
[403860746,1769605853013,-7645.82405976,0.000431,2]
[403860747,1769605853023,-150.0,0.00043103,14]
[403860748,1769605853033,-353.18951382,0.0004311,17]
[403860749,1769605853043,-2987.85380605,0.0004311,2]
[403860750,1769605853054,-1000.0,0.00043121,14]
[403860751,1769605853064,-1000.0,0.00043124,14]
[403860752,1769605853073,-1000.0,0.00043161,14]
[403860753,1769605853085,-1000.0,0.00043174,14]
[403860754,1769605853095,-1000.0,0.00043186,14]
[403860755,1769605853104,-387.0,0.00043191,2]
[403860756,1769605853114,-151.0,0.00043196,120]
[403860757,1769605853123,-151.0,0.00043197,120]
[403860758,1769605853133,-214.75381521,0.00043197,120]
[403860759,1769605853143,-700.0,0.00043199,60]
[403860760,1769605853153,-300.0,0.00043199,30]
[403860761,1769605853163,-666.0,0.00043199,30]
[403860762,1769605853173,-4033.9,0.00043199,120]
[403860763,1769605853183,-151.0,0.00043199,120]
[403860764,1769605853194,-162.61656,0.00043199,120]
[403860765,1769605853206,-1303.63016,0.00043199,120]
[403860766,1769605853216,-151.0,0.00043199,120]
[403860767,1769605853226,-151.0,0.00043199,120]
[403860768,1769605853235,-151.0,0.00043199,120]
[403860769,1769605853245,-151.0,0.00043199,120]
[403860770,1769605853255,-151.0,0.00043199,120]
[403860771,1769605853264,-151.0,0.00043199,120]
[403860772,1769605853275,-594.225977,0.00043199,120]
[403860773,1769605853285,-594.225977,0.00043199,120]
[403860774,1769605853295,-594.225977,0.00043199,120]
[403860775,1769605853305,-594.225977,0.00043199,120]
[403860776,1769605853315,-151.0,0.00043199,120]
[403860777,1769605853325,-151.0,0.00043199,120]
[403860778,1769605853335,-257.591515,0.00043199,120]
[403860779,1769605853345,-257.591515,0.00043199,120]
[403860780,1769605853355,-257.591515,0.00043199,120]
[403860781,1769605853365,-152.837343,0.00043199,120]
[403860782,1769605853374,-257.591515,0.00043199,120]
[403860783,1769605853384,-151.0,0.00043199,120]
[403860784,1769605853393,-153.594352,0.00043199,120]
[403860785,1769605853403,-151.0,0.00043199,120]
[403860786,1769605853412,-151.0,0.00043199,120]
[403860787,1769605853422,-151.0,0.00043199,120]
[403860788,1769605853431,-215.401807,0.00043199,120]
[403860789,1769605853441,-151.0,0.00043199,120]
[403860790,1769605853451,-215.401807,0.00043199,120]
[403860791,1769605853461,-151.0,0.00043199,120]
[403860792,1769605853470,-151.0,0.00043199,120]
[403860793,1769605853479,-151.0,0.00043199,120]
[403860794,1769605853489,-151.0,0.00043199,120]
[403860795,1769605853499,-151.0,0.00043199,120]
[403860796,1769605853509,-215.401807,0.00043199,120]
[403860797,1769605853519,-215.401807,0.00043199,120]
[403860798,1769605853529,-368.886186,0.00043199,120]
[403860799,1769605853540,-368.886186,0.00043199,120]
[403860800,1769605853549,-368.886186,0.00043199,120]
[403860801,1769605853559,-368.886186,0.00043199,120]
[403860802,1769605853569,-1184.79281839,0.00043199,30]
[403860803,1769605853578,-180.586246,0.00043199,120]
[403860804,1769605853587,-180.586246,0.00043199,120]
[403860805,1769605853597,-180.586246,0.00043199,120]
[403860806,1769605853607,-180.586246,0.00043199,120]
[403860807,1769605853616,-50000.0,0.000432,54]
[403860808,1769605853626,-1255515.04254877,0.000432,120]
[403860809,1769605854680,-1051.28604614,0.000432,120]
[403860810,1769605854692,-274.91603042,0.000432,120]
[403860811,1769605854734,-271.67020002,0.000432,120]
[403860812,1769605854745,-965.92,0.000432,120]
[403860813,1769605855416,-151.0,0.00014985,2]
[403860814,1769605855425,-151.0,0.00014985,2]
[403860815,1769605855435,-180.06,0.00042603,30]
[403860816,1769605855445,-559.17,0.00042603,30]
[403860817,1769605855454,-172.31,0.00042603,30]
[403860818,1769605855464,-241.235831,0.00043048,90]
[403860819,1769605855473,-151.0,0.00043048,120]
[403860820,1769605855483,-241.235831,0.00043048,90]
[403860821,1769605855492,-151.0,0.00043048,120]
[403860822,1769605855502,-6981.988338,0.000432,120]
[403860823,1769605855532,-54490.39488148,0.000432,120]
[403860824,1769605855543,-1668.63597414,0.000432,120]
[403860825,1769605855555,-345.89286259,0.000432,120]
[403860826,1769605855593,-211.107743,0.00043048,120]
[403860827,1769605855607,-2175.86496448,0.000432,120]
[403860828,1769605855624,-27073.52636467,0.000432,120]
[403860829,1769605855914,-151.0,0.00020999,2]
[403860830,1769605855924,-468.96,0.00042603,30]
[403860831,1769605855933,-151.0,0.00043048,120]
[403860832,1769605855943,-870.635046,0.00043048,120]
[403860833,1769605855952,-5924.35203286,0.000432,120]
[403860834,1769605855973,-332.818322,0.000432,120]
[403860835,1769605867634,600.0,0.0001801,120]
[403860837,1769605927721,-150.0,0.00013915,2]
[403860838,1769605927753,-300.0,0.00013915,2]
[403860839,1769605988630,151.0,0.00013913,2]
[403860840,1769605989022,151.0,0.00013913,2]
[403860841,1769606002021,1200.0,0.00013915,2]
[403860842,1769606002240,2867.46457452,0.00013816,2]
[403860843,1769606027291,156.89313435,0.000135,3]
[403860844,1769606048245,2016.97856462,0.00013816,2]
[403860845,1769606064755,564.32158075,0.00013816,2]
[403860846,1769606101551,300.0,0.00013915,2]
[403860847,1769606101980,300.0,0.00013915,2]
[403860848,1769606102019,1200.0,0.00013915,2]
[403860849,1769606102075,300.0,0.00013915,2]
[403860850,1769606102510,49.24528011,0.00013915,2]
[403860851,1769606102534,250.75471989,0.00013915,2]
[403860852,1769606102845,150.0,0.00013915,2]
[403860853,1769606119494,151.0,0.00013913,2]
[403860854,1769606119943,151.0,0.00013913,2]
[403860855,1769606128537,2330.54871604,0.00013816,2]
[403860856,1769606138110,194.08975461,0.00013816,2]
[403860857,1769606144745,509.57470144,0.00013906,2]
[403860858,1769606150825,500.0,0.00013915,2]
[403860859,1769606151061,500.0,0.00013915,2]
[403860860,1769606151325,500.0,0.00013915,2]
[403860861,1769606151566,500.0,0.00013915,2]
[403860862,1769606151813,500.0,0.00013915,2]
[403860863,1769606155653,500.0,0.00013915,2]
[403860864,1769606155910,500.0,0.00013915,2]
[403860865,1769606156142,500.0,0.00013915,2]
[403860866,1769606156378,500.0,0.00013915,2]
[403860867,1769606156629,500.0,0.00013915,2]
[403860868,1769606161363,500.0,0.00013915,2]
[403860869,1769606161401,249.75598967,0.00013915,2]
[403860870,1769606161437,500.0,0.00013915,2]
[403860871,1769606161620,13.28611835,0.00013915,2]
[403860872,1769606161643,139.90366975,0.00013915,2]
[403860873,1769606161912,500.0,0.00013915,2]
[403860874,1769606161967,645.46052758,0.00013915,2]
[403860875,1769606162005,500.0,0.00013915,2]
[403860876,1769606162051,500.0,0.00013915,2]
[403860877,1769606164922,917.36111207,0.00013915,2]
[403860878,1769606164964,917.36111207,0.00013915,2]
[403860879,1769606165011,917.36111207,0.00013915,2]
[403860880,1769606165128,917.36111207,0.00013915,2]
[403860881,1769606165309,917.36111207,0.00013915,2]
[403860882,1769606165361,917.36111207,0.00013915,2]
[403860883,1769606165407,917.36111207,0.00013915,2]
[403860884,1769606165532,917.36111207,0.00013915,2]
[403860885,1769606165574,375.75690611,0.00013915,2]
[403860886,1769606165603,541.60420596,0.00013915,2]
[403860887,1769606165648,917.36111207,0.00013915,2]
[403860888,1769606168824,250.0,0.00013916,2]
[403860889,1769606174919,500.0,0.00013915,2]
[403860890,1769606175141,500.0,0.00013915,2]
[403860891,1769606175381,500.0,0.00013915,2]
[403860892,1769606175622,500.0,0.00013915,2]
[403860893,1769606175857,345.82799971,0.00013915,2]
[403860894,1769606191539,2670.64469975,0.00013816,2]
[403860895,1769606197646,455.4139,0.00013816,2]
[403860896,1769606211668,499.92605862,0.00013915,2]
[403860897,1769606241506,500.0,0.00013915,2]
[403860898,1769606241744,500.0,0.00013915,2]
[403860899,1769606250081,2712.68253719,0.00013816,2]
[403860900,1769606259726,65.51480473,0.00013816,2]
[403860901,1769606259751,1872.58328504,0.00013816,2]
[403860902,1769606281773,300.0,0.00013915,2]
[403860903,1769606281873,150.0,0.00013915,2]
[403860904,1769606282506,300.0,0.00013915,2]
[403860907,1769606324609,664.59663796,0.00013915,2]
[403860908,1769606324971,664.59663796,0.00013915,2]
[403860909,1769606325298,664.59663796,0.00013915,2]
[403860910,1769606325606,664.59663796,0.00013915,2]
[403860911,1769606325915,664.59663796,0.00013915,2]
[403860912,1769606326309,664.59663796,0.00013915,2]
[403860913,1769606326627,664.59663796,0.00013915,2]
[403860914,1769606326981,664.59663796,0.00013915,2]
[403860915,1769606327329,664.59663796,0.00013915,2]
[403860916,1769606327615,664.59663796,0.00013915,2]
[403860917,1769606327656,664.59663796,0.00013915,2]
[403860918,1769606327707,66.8636974,0.00013915,2]
[403860919,1769606327733,597.73294056,0.00013915,2]
[403860920,1769606327783,664.59663796,0.00013915,2]
[403860921,1769606327821,664.59663796,0.00013915,2]
[403860922,1769606327858,664.59663796,0.00013915,2]
[403860923,1769606327896,664.59663796,0.00013915,2]
[403860924,1769606327937,664.59663796,0.00013915,2]
[403860925,1769606327975,664.59663796,0.00013915,2]
[403860926,1769606328013,664.59663796,0.00013915,2]
[403860927,1769606328051,664.59663796,0.00013915,2]
[403860928,1769606328104,664.59663796,0.00013915,2]
[403860929,1769606328168,664.59663796,0.00013915,2]
[403860930,1769606328214,664.59663796,0.00013915,2]
[403860931,1769606328252,664.59663796,0.00013915,2]
[403860932,1769606328607,664.59663796,0.00013915,2]
[403860933,1769606328644,664.59663796,0.00013915,2]
[403860934,1769606328686,97.924128,0.00013915,2]
[403860935,1769606328711,566.67250996,0.00013915,2]
[403860936,1769606328749,664.59663796,0.00013915,2]
[403860937,1769606328787,664.59663796,0.00013915,2]
[403860938,1769606328830,664.59663796,0.00013915,2]
[403860939,1769606328870,664.59663796,0.00013915,2]
[403860940,1769606328907,664.59663796,0.00013915,2]
[403860941,1769606328943,664.59663796,0.00013915,2]
[403860942,1769606328981,664.59663796,0.00013915,2]
[403860943,1769606329022,664.59663796,0.00013915,2]
[403860944,1769606329059,664.59663796,0.00013915,2]
[403860945,1769606329096,664.59663796,0.00013915,2]
[403860946,1769606329134,664.59663796,0.00013915,2]
[403860947,1769606329171,664.59663796,0.00013915,2]
[403860948,1769606329212,664.59663796,0.00013915,2]
[403860949,1769606329251,664.59663796,0.00013915,2]
[403860950,1769606329290,128.9845586,0.00013915,2]
[403860951,1769606338619,-535.61207936,0.00013915,2]
[403860952,1769606338651,-664.59663796,0.00013915,2]
[403860953,1769606338684,-664.59663796,0.00013915,2]
[403860954,1769606338717,-664.59663796,0.00013915,2]
[403860955,1769606338749,-664.59663796,0.00013915,2]
[403860956,1769606338780,-664.59663796,0.00013915,2]
[403860957,1769606338811,-664.59663796,0.00013915,2]
[403860958,1769606338843,-289.0295478,0.00013915,2]
[403860959,1769606342331,-300.0,0.00013914,2]
[403860960,1769606342368,-375.56709016,0.00013915,2]
[403860961,1769606342402,-664.59663796,0.00013915,2]
[403860962,1769606342439,-664.59663796,0.00013915,2]
[403860963,1769606342472,-664.59663796,0.00013915,2]
[403860964,1769606342505,-664.59663796,0.00013915,2]
[403860965,1769606342537,-664.59663796,0.00013915,2]
[403860966,1769606342570,-664.59663796,0.00013915,2]
[403860967,1769606342602,-9.1195262,0.00013915,2]
[403860968,1769606389814,10000.01,0.00013816,2]
[403860969,1769606389839,10000.01,0.00013816,2]
[403860970,1769606389863,4953.64484296,0.00013816,2]
[403860971,1769606396787,4119.6099,0.00013816,2]
[403860972,1769606403893,926.75525704,0.00013816,2]
[403860973,1769606403919,9073.25474296,0.00013816,2]
[403860976,1769606458976,926.75525704,0.00013816,2]
[403860977,1769606458998,5794.86564296,0.00013816,2]
[403860978,1769606480082,2635.32407768,0.00013816,2]
[403860979,1769606483875,500.0,0.00013816,2]
[403860980,1769606492620,1069.82027936,0.00013638,2]
[403860981,1769606492644,2092.04072064,0.00013638,2]
[403860982,1769606492737,222.055,0.00013638,2]
[403860983,1769606534375,1651.92,0.00013,2]
[403860984,1769606539086,223.46614869,0.00013808,2]
[403860985,1769606555107,5810.52813067,0.00013816,2]
[403860986,1769606555132,10000.01,0.00013816,2]
[403860987,1769606555155,10000.01,0.00013816,2]
[403860988,1769606555180,4363.24566933,0.00013816,2]